bitfinex-derivatives/quotes_BTCF0:USTF0_20241003
["timestamp","ask_amount","ask_price","bid_price","bid_amount"]
[1727993776713,0.082164,60857.0,60855.0,0.19]
[1727993776910,0.08217,60852.0,60851.0,0.00246492]
[1727993779324,0.08317,60852.0,60851.0,0.00246492]
[1727993779930,0.08717,60852.0,60851.0,0.00446492]
[1727993781521,0.09017,60852.0,60851.0,0.00246492]
[1727993783527,0.008,60852.0,60851.0,0.00246492]
[1727993787529,0.008,60852.0,60851.0,0.08463692]
[1727993788430,0.008,60852.0,60851.0,0.00246492]
[1727993788622,0.09017,60852.0,60851.0,0.00246492]
[1727993789333,1.4618,60852.0,60845.0,0.06545463]
[1727993789632,0.19,60849.0,60840.0,0.3646]
[1727993789939,0.082188,60839.0,60838.0,0.06545463]
[1727993790123,0.19,60841.0,60830.0,0.082199]
[1727993790124,0.5508,60841.0,60834.0,0.06545463]
[1727993790328,0.5508,60841.0,60830.0,0.16402168]
[1727993790329,0.082197,60833.0,60831.0,0.06545463]
[1727993790525,0.19,60836.0,60830.0,0.06545463]
[1727993790826,0.3646,60841.0,60827.0,0.06545463]
[1727993790827,0.082203,60828.0,60827.0,0.06545463]
[1727993791033,0.2847,60835.0,60826.0,0.06545463]
[1727993791221,0.2847,60835.0,60826.0,0.14765963]
[1727993791222,0.082197,60832.0,60826.0,0.14765963]
[1727993791524,0.0822,60830.0,60826.0,0.06545463]
[1727993791728,0.2847,60835.0,60826.0,0.06545463]
[1727993791729,0.082204,60827.0,60826.0,0.06545463]
[1727993791929,0.082204,60827.0,60824.0,0.36164]
[1727993791930,0.082205,60826.0,60825.0,0.06545463]
[1727993792231,0.19,60831.0,60823.0,0.06545463]
[1727993792534,0.080208,60824.0,60821.0,0.06792052]
[1727993792739,0.08221,60823.0,60821.0,0.00246589]
[1727993792919,0.19,60822.0,60821.0,0.00246589]
[1727993793119,0.79,60822.0,60815.0,0.06545463]
[1727993793432,0.082218,60817.0,60811.0,0.082224]
[1727993793632,0.19,60822.0,60808.0,0.06925463]
[1727993793633,0.19,60822.0,60808.0,0.06545463]
[1727993793932,0.19,60822.0,60807.0,0.19]
[1727993793933,0.082224,60812.0,60807.0,0.19]
[1727993794139,0.0038,60820.0,60807.0,0.19]
[1727993794319,0.272211,60822.0,60807.0,0.19]
[1727993794519,0.272211,60822.0,60807.0,0.21946925]
[1727993794821,0.082223,60813.0,60807.0,0.30170025]
[1727993795228,0.082223,60813.0,60809.0,0.082227]
[1727993795428,0.082223,60813.0,60807.0,0.21946925]
[1727993795731,0.082223,60813.0,60809.0,0.001]
[1727993796326,0.084223,60813.0,60807.0,0.21946925]
[1727993796828,0.084223,60813.0,60810.0,0.082226]
[1727993797024,0.003,60813.0,60811.0,0.19]
[1727993797331,0.003,60813.0,60812.0,0.443024]
[1727993797925,0.003,60813.0,60812.0,1.763024]
[1727993798323,0.001,60813.0,60812.0,1.763024]
[1727993798822,0.0038,60820.0,60812.0,1.6808]
[1727993799025,0.0306,60827.0,60819.0,0.272214]
[1727993799026,0.082204,60827.0,60819.0,0.272214]
[1727993799232,0.3608,60826.0,60819.0,0.272214]
[1727993799427,0.3608,60826.0,60813.0,0.0312]
[1727993799428,0.3608,60826.0,60825.0,0.272207]
[1727993799732,0.0822,60830.0,60825.0,0.19]
[1727993800032,0.0038,60836.0,60827.0,0.443004]
[1727993801822,0.082195,60834.0,60827.0,0.443004]
[1727993802232,0.00346669,60828.0,60827.0,0.443004]
[1727993803035,0.00246669,60828.0,60827.0,0.443004]
[1727993803627,0.00346669,60828.0,60827.0,0.443004]
[1727993805325,0.00246669,60828.0,60827.0,0.443004]
[1727993806032,0.001,60828.0,60827.0,0.443004]
[1727993806332,0.001,60828.0,60827.0,0.474204]
[1727993806726,0.001,60828.0,60827.0,1.794204]
[1727993807130,0.001,60828.0,60827.0,1.763004]
[1727993808933,0.001,60828.0,60827.0,1.6808]
[1727993809133,0.001,60828.0,60827.0,1.763004]
[1727993809435,0.082195,60834.0,60830.0,0.082199]
[1727993809634,0.082195,60834.0,60831.0,0.19]
[1727993809832,0.082195,60834.0,60830.0,0.082199]
[1727993810532,0.19,60838.0,60827.0,0.36264]
[1727993810734,0.001,60828.0,60827.0,0.3618]
[1727993811333,0.001,60828.0,60827.0,0.5518]
[1727993811532,0.082202,60829.0,60827.0,0.5508]
[1727993811738,0.002,60834.0,60831.0,0.082198]
[1727993812037,0.002,60834.0,60831.0,0.272198]
[1727993812239,0.082192,60836.0,60831.0,0.272198]
[1727993812447,0.003,60834.0,60831.0,0.272198]
[1727993812940,0.005,60834.0,60831.0,0.272198]
[1727993813329,0.005,60834.0,60831.0,0.19]
[1727993813528,0.0038,60844.0,60831.0,0.19]
[1727993813738,0.001,60834.0,60833.0,0.082196]
[1727993813933,0.001,60834.0,60833.0,0.442996]
[1727993814135,0.0038,60844.0,60843.0,0.082182]
[1727993814340,0.00626608,60849.0,60833.0,0.3608]
[1727993814341,0.00246608,60849.0,60833.0,0.3608]
[1727993814535,0.00626608,60849.0,60846.0,0.082178]
[1727993814735,0.00246608,60849.0,60847.0,0.0313]
[1727993814934,0.00246608,60849.0,60848.0,0.19]
[1727993815131,0.00246608,60849.0,60848.0,0.272176]
[1727993815842,0.00346608,60849.0,60848.0,0.302576]
[1727993816643,0.00446608,60849.0,60848.0,0.302576]
[1727993817434,0.0038,60858.0,60848.0,1.67424]
[1727993817636,0.0038,60862.0,60861.0,0.082158]
[1727993817831,0.3652,60873.0,60868.0,0.082148]
[1727993817832,0.0038,60872.0,60868.0,0.082148]
[1727993818138,0.08460586,60874.0,60868.0,0.082148]
[1727993818139,0.08460586,60874.0,60871.0,0.19]
[1727993818543,0.00246486,60874.0,60871.0,0.19]
[1727993819037,0.08460586,60874.0,60868.0,0.19]
[1727993819433,0.09760586,60874.0,60868.0,0.19]
[1727993819739,0.09760586,60874.0,60868.0,0.272148]
[1727993820144,0.10760586,60874.0,60868.0,0.272148]
[1727993820738,0.082143,60872.0,60865.0,1.35099597]
[1727993820929,0.10760586,60874.0,60865.0,1.35015597]
[1727993820930,0.10460586,60874.0,60865.0,1.35015597]
[1727993821130,0.10460586,60874.0,60867.0,0.08215]
[1727993821744,0.004,60872.0,60867.0,0.08215]
[1727993822334,0.086144,60872.0,60868.0,0.082148]
[1727993823040,0.094144,60872.0,60868.0,0.082148]
[1727993823445,0.091144,60872.0,60868.0,0.082148]
[1727993824235,0.091144,60872.0,60869.0,0.082147]
[1727993824438,0.098144,60872.0,60869.0,0.082147]
[1727993824637,0.016,60872.0,60871.0,0.082145]
[1727993824843,0.016,60872.0,60871.0,0.272145]
[1727993825037,0.016,60872.0,60871.0,0.632945]
[1727993825240,0.0038,60886.0,60872.0,0.49284]
[1727993825438,0.0038,60894.0,60882.0,0.19]
[1727993825640,0.00246391,60899.0,60893.0,0.19]
[1727993825843,0.00246391,60899.0,60898.0,0.19]
[1727993826042,0.08457091,60899.0,60895.0,0.19]
[1727993826240,0.00246391,60899.0,60890.0,0.19]
[1727993826442,0.082114,60894.0,60890.0,0.19]
[1727993827633,0.082114,60894.0,60888.0,0.28]
[1727993828039,0.092114,60894.0,60890.0,0.001]
[1727993828241,0.01,60894.0,60890.0,0.001]
[1727993828639,0.023,60894.0,60893.0,0.082115]
[1727993829537,0.013,60894.0,60893.0,0.082115]
[1727993829744,0.022,60894.0,60893.0,0.083115]
[1727993829943,0.022,60894.0,60893.0,0.001]
[1727993830454,0.027,60894.0,60893.0,0.002]
[1727993830953,0.109114,60894.0,60893.0,0.002]
[1727993832554,0.082116,60892.0,60873.0,0.0308]
[1727993832746,0.082135,60878.0,60876.0,0.082137]
[1727993833152,0.28,60881.0,60871.0,0.3608]
[1727993833457,0.28,60881.0,60869.0,1.32]
[1727993833458,0.08214,60875.0,60869.0,0.00084]
[1727993833659,0.08214,60875.0,60871.0,0.082143]
[1727993833948,0.08214,60875.0,60873.0,0.007]
[1727993834153,0.082133,60880.0,60873.0,0.007]
[1727993834354,0.3608,60882.0,60873.0,0.287]
[1727993834543,0.3608,60882.0,60881.0,0.082131]
[1727993834744,0.3608,60882.0,60873.0,0.287]
[1727993834952,0.082131,60881.0,60878.0,0.082135]
[1727993835350,0.3608,60882.0,60879.0,0.082132]
[1727993835754,0.3608,60882.0,60876.0,0.002]
[1727993835948,0.3618,60882.0,60879.0,0.28]
[1727993836149,0.3618,60882.0,60881.0,0.082131]
[1727993836354,0.3618,60882.0,60880.0,0.0325]
[1727993836653,0.3618,60882.0,60879.0,0.001]
[1727993836654,0.082131,60881.0,60879.0,0.001]
[1727993836847,0.3618,60882.0,60879.0,0.001]
[1727993837047,0.3608,60882.0,60879.0,0.001]
[1727993837344,0.3608,60882.0,60878.0,0.082135]
[1727993837345,0.3628,60882.0,60878.0,0.082135]
[1727993837747,0.3628,60882.0,60874.0,0.032]
[1727993837748,0.3628,60882.0,60879.0,0.082133]
[1727993837950,0.3628,60882.0,60874.0,0.032]
[1727993838148,0.002,60882.0,60878.0,0.28]
[1727993838354,0.08413,60882.0,60877.0,0.442936]
[1727993838658,0.001,60881.0,60877.0,0.442936]
[1727993839050,0.001,60881.0,60878.0,0.082135]
[1727993839251,0.082129,60883.0,60878.0,0.082135]
[1727993839553,0.28,60889.0,60877.0,0.3608]
[1727993839853,0.082135,60878.0,60877.0,0.3608]
[1727993840057,0.082135,60878.0,60877.0,0.3618]
[1727993841455,0.082135,60878.0,60877.0,0.001]
[1727993841753,0.28,60884.0,60875.0,0.3608]
[1727993841754,0.082137,60877.0,60875.0,0.3608]
[1727993841957,0.082138,60876.0,60875.0,0.3608]
[1727993843467,0.087138,60876.0,60875.0,0.3628]
[1727993844155,0.087138,60876.0,60875.0,0.002]
[1727993844858,0.082138,60876.0,60875.0,0.001]
[1727993845060,0.086138,60876.0,60875.0,0.001]
[1727993845258,0.082143,60872.0,60871.0,0.04881091]
[1727993845450,0.082146,60870.0,60868.0,0.50840163]
[1727993845848,0.092138,60876.0,60867.0,0.04894352]
[1727993845849,0.082149,60868.0,60867.0,0.04894352]
[1727993846159,0.082143,60872.0,60865.0,0.04894352]
[1727993846356,0.082149,60868.0,60866.0,0.082151]
[1727993847053,0.083149,60868.0,60867.0,0.006]
[1727993847463,0.083149,60868.0,60867.0,0.05494352]
[1727993848466,0.083149,60868.0,60867.0,0.006]
[1727993848754,0.082142,60873.0,60868.0,0.002]
[1727993848957,0.082147,60869.0,60868.0,0.002]
[1727993849661,0.097149,60868.0,60867.0,0.002]
[1727993850358,0.091149,60868.0,60867.0,0.001]
[1727993851862,0.095149,60868.0,60867.0,0.001]
[1727993852263,0.082153,60865.0,60861.0,0.16390152]
[1727993853561,0.082153,60865.0,60861.0,0.52470152]
[1727993853757,0.084153,60865.0,60861.0,0.52470152]
[1727993854260,0.084153,60865.0,60864.0,0.082154]
[1727993854460,0.002,60865.0,60864.0,0.082154]
[1727993854766,0.002,60865.0,60862.0,0.04894352]
[1727993854967,0.082154,60864.0,60863.0,0.04894352]
[1727993855771,0.082154,60864.0,60862.0,0.04894352]
[1727993855961,0.082154,60864.0,60863.0,0.04894352]
[1727993856162,0.085154,60864.0,60862.0,0.04894352]
[1727993856558,0.086154,60864.0,60863.0,0.04894352]
[1727993856761,0.004,60864.0,60863.0,0.32109852]
[1727993856964,0.004,60864.0,60863.0,1.47018627]
[1727993857263,0.0038,60872.0,60863.0,1.47018627]
[1727993857464,0.0038,60877.0,60871.0,0.19]
[1727993857666,0.082136,60877.0,60876.0,0.04899045]
[1727993857863,0.082136,60877.0,60870.0,0.08164371]
[1727993857864,0.082139,60875.0,60874.0,0.06530619]
[1727993858457,0.082139,60875.0,60871.0,0.08164371]
[1727993859566,0.082142,60873.0,60872.0,0.18656273]
[1727993859872,0.082142,60873.0,60871.0,0.08164371]
[1727993860770,0.082143,60872.0,60871.0,0.08164371]
[1727993860975,0.004,60875.0,60871.0,0.10494016]
[1727993861273,0.082142,60873.0,60872.0,0.18662849]
[1727993861461,0.004,60875.0,60872.0,0.10497886]
[1727993861775,0.08214,60874.0,60873.0,0.08172291]
[1727993862365,0.082143,60872.0,60871.0,0.08172291]
[1727993862571,0.082143,60872.0,60871.0,0.10505348]
[1727993862966,0.082143,60872.0,60871.0,0.18680101]
[1727993863670,0.086143,60872.0,60869.0,0.08174753]
[1727993863879,0.086143,60872.0,60870.0,0.16389353]
[1727993864073,0.086143,60872.0,60870.0,0.082146]
[1727993864771,0.088143,60872.0,60870.0,0.082146]
[1727993865269,0.087143,60872.0,60870.0,0.082146]
[1727993865474,0.088143,60872.0,60870.0,0.082146]
[1727993865771,0.087143,60872.0,60870.0,0.082146]
[1727993866282,0.082145,60871.0,60868.0,0.08174753]
[1727993866578,0.082147,60869.0,60868.0,0.08174753]
[1727993866872,0.272147,60869.0,60868.0,0.08174753]
[1727993867076,1.725827,60869.0,60865.0,0.08174753]
[1727993867271,1.725827,60869.0,60864.0,0.08174753]
[1727993867272,0.082153,60865.0,60864.0,0.08174753]
[1727993867480,0.575033,60865.0,60864.0,0.08174753]
[1727993867778,0.082154,60864.0,60863.0,0.09834756]
[1727993868081,1.12402,60864.0,60861.0,0.04908873]
[1727993868375,0.19,60862.0,60861.0,0.04908873]
[1727993868569,0.082158,60861.0,60860.0,0.04908873]
[1727993869385,0.082159,60860.0,60859.0,0.05155333]
[1727993870074,0.606179,60860.0,60859.0,0.0024646]
[1727993870278,1.12402,60860.0,60858.0,0.04908873]
[1727993870483,0.082163,60857.0,60856.0,0.04908873]
[1727993870686,0.082165,60856.0,60855.0,0.04908873]
[1727993871569,0.082166,60855.0,60854.0,0.04908873]
[1727993871775,0.272166,60855.0,60854.0,0.04908873]
[1727993871971,0.19,60855.0,60849.0,0.3608]
[1727993872175,0.082173,60850.0,60849.0,0.3608]
[1727993873076,0.082173,60850.0,60849.0,0.3698]
[1727993873580,0.082178,60846.0,60843.0,0.05288873]
[1727993873787,1.283,60850.0,60838.0,0.461]
[1727993873788,0.19,60844.0,60838.0,0.50924873]
[1727993873979,0.082182,60844.0,60842.0,0.082183]
[1727993874287,0.082176,60848.0,60841.0,0.19]
[1727993874986,0.001,60850.0,60844.0,0.082181]
[1727993875182,0.001,60850.0,60839.0,0.0323]
[1727993875183,0.082178,60846.0,60839.0,0.0323]
[1727993875388,0.082178,60846.0,60841.0,0.007]
[1727993875582,0.082178,60846.0,60841.0,0.089185]
[1727993876296,0.083178,60846.0,60844.0,0.007]
[1727993876791,0.083173,60850.0,60844.0,0.007]
[1727993876987,0.083173,60850.0,60845.0,0.11228]
[1727993876988,0.001,60846.0,60845.0,0.11228]
[1727993877789,0.002,60846.0,60845.0,0.11228]
[1727993878695,0.002,60846.0,60845.0,0.11928]
[1727993879197,0.002,60846.0,60845.0,0.12428]
[1727993879382,0.002,60846.0,60845.0,0.18960601]
[1727993879579,0.002,60846.0,60845.0,0.12428]
[1727993880295,0.002,60846.0,60845.0,0.18960601]
[1727993880482,0.002,60846.0,60845.0,0.07732601]
[1727993880790,0.084178,60846.0,60845.0,0.012]
[1727993883188,0.444978,60846.0,60845.0,0.012]
[1727993884895,0.084178,60846.0,60845.0,0.012]
[1727993885096,0.002,60846.0,60845.0,0.33316966]
[1727993885281,0.002,60846.0,60845.0,0.09418]
[1727993885487,0.002,60846.0,60845.0,0.14312734]
[1727993886298,0.002,60846.0,60845.0,0.17212884]
[1727993886989,0.002,60846.0,60845.0,0.1231815]
[1727993889697,0.002,60846.0,60845.0,0.1721266]
[1727993889997,0.084178,60846.0,60845.0,0.012]
[1727993890707,1.177218,60846.0,60845.0,0.012]
[1727993891004,0.082189,60838.0,60836.0,0.00246547]
[1727993891203,1.81664,60846.0,60836.0,0.00246547]
[1727993891204,0.08219,60837.0,60836.0,0.00246547]
[1727993891894,1.17531,60837.0,60828.0,0.0489451]
[1727993892101,0.082203,60828.0,60826.0,0.0489451]
[1727993892295,0.082203,60828.0,60825.0,0.1311521]
[1727993892496,0.082203,60828.0,60826.0,0.0489451]
[1727993893194,0.082203,60828.0,60825.0,0.082207]
[1727993893195,0.082203,60828.0,60825.0,0.16034975]
[1727993893395,0.083203,60828.0,60825.0,0.16034975]
[1727993893595,0.082204,60827.0,60826.0,0.0489451]
[1727993893994,0.03286129,60827.0,60826.0,0.18835738]
[1727993894202,0.001,60828.0,60826.0,0.18834891]
[1727993894396,0.082203,60828.0,60827.0,0.08174753]
[1727993894600,0.084203,60828.0,60827.0,0.10658213]
[1727993894990,0.084203,60828.0,60827.0,0.18833222]
[1727993895497,0.084203,60828.0,60827.0,0.10657495]
[1727993895897,0.084203,60828.0,60827.0,1.42657495]
[1727993896098,0.082203,60828.0,60827.0,1.42657495]
[1727993896303,0.083203,60828.0,60827.0,1.42657495]
[1727993896508,0.083203,60828.0,60827.0,1.52492251]
[1727993896804,0.086203,60828.0,60827.0,1.52492251]
[1727993897198,0.086203,60828.0,60827.0,1.42657495]
[1727993899601,0.086203,60828.0,60827.0,1.42634235]
[1727993902113,0.086203,60828.0,60827.0,1.38545749]
[1727993902413,0.086203,60828.0,60826.0,0.06545749]
[1727993902609,0.086203,60828.0,60827.0,0.06545749]
[1727993903504,0.086203,60828.0,60827.0,1.20802587]
[1727993903505,0.004,60828.0,60827.0,1.20802587]
[1727993903711,0.0038,60836.0,60827.0,1.23237809]
[1727993903914,0.326,60843.0,60835.0,0.5508]
[1727993904210,0.00246635,60841.0,60840.0,0.082186]
[1727993904416,0.00246635,60841.0,60840.0,0.442986]
[1727993904614,0.00246635,60841.0,60840.0,0.54861669]
[1727993906317,0.00346635,60841.0,60840.0,0.54861669]
[1727993906709,0.00446635,60841.0,60840.0,0.55161669]
[1727993906916,0.00446635,60841.0,60840.0,0.58321669]
[1727993907419,0.00346635,60841.0,60840.0,0.58321669]
[1727993908509,0.00346635,60841.0,60840.0,0.66495809]
[1727993908713,0.001,60841.0,60840.0,0.3954]
[1727993908910,0.001,60841.0,60840.0,0.3638]
[1727993909113,0.001,60841.0,60840.0,0.46940384]
[1727993909621,0.083185,60841.0,60840.0,0.13689243]
[1727993909919,0.083185,60841.0,60840.0,0.10760384]
[1727993910113,0.273185,60841.0,60840.0,0.10560384]
[1727993910414,0.280185,60841.0,60840.0,0.10560384]
[1727993911211,0.088185,60841.0,60840.0,0.10560384]
[1727993911914,0.196,60841.0,60838.0,0.08174727]
[1727993912215,0.3608,60839.0,60836.0,0.06541331]
[1727993912513,0.3608,60839.0,60830.0,0.02901039]
[1727993912514,0.082192,60836.0,60834.0,0.06541331]
[1727993912726,0.272193,60835.0,60834.0,0.06541331]
[1727993913309,0.082194,60834.0,60833.0,0.06541331]
[1727993913515,0.082194,60834.0,60829.0,0.08174727]
[1727993913516,0.082196,60833.0,60829.0,0.08174727]
[1727993913815,0.2722,60830.0,60829.0,0.08174727]
[1727993914010,0.082204,60827.0,60826.0,0.09834756]
[1727993914213,0.082207,60825.0,60823.0,0.08179367]
[1727993914412,0.082211,60822.0,60820.0,0.08179367]
[1727993914613,0.082212,60821.0,60820.0,0.08179367]
[1727993915221,0.082212,60821.0,60819.0,0.08179367]
[1727993915811,0.272213,60820.0,60819.0,0.08179367]
[1727993916018,0.082216,60818.0,60817.0,0.46036]
[1727993916917,0.19,60820.0,60815.0,0.00246606]
[1727993917114,0.079218,60817.0,60816.0,0.10678776]
[1727993917421,0.192,60820.0,60816.0,0.10678776]
[1727993917611,0.083216,60818.0,60817.0,0.08478327]
[1727993917815,0.084216,60818.0,60817.0,0.19153848]
[1727993918111,0.084216,60818.0,60817.0,0.003]
[1727993919520,0.001,60817.0,60815.0,0.08468506]
[1727993919723,0.001,60817.0,60816.0,0.18812766]
[1727993919724,0.083217,60817.0,60816.0,0.18812766]
[1727993920121,0.082217,60817.0,60816.0,0.18812766]
[1727993920321,0.002,60818.0,60817.0,0.082217]
[1727993920521,0.3298,60832.0,60817.0,0.20470684]
[1727993920725,0.082205,60826.0,60825.0,0.06539843]
[1727993921026,0.082207,60825.0,60823.0,0.082209]
[1727993921723,0.6868,60832.0,60822.0,0.08174804]
[1727993922018,0.6868,60832.0,60830.0,0.04904145]
[1727993922019,0.082199,60831.0,60830.0,0.04904145]
[1727993922913,0.082199,60831.0,60827.0,0.1475916]
[1727993922914,0.68884,60832.0,60829.0,0.04904145]
[1727993923216,0.6868,60832.0,60827.0,0.1475916]
[1727993923421,0.082199,60831.0,60830.0,0.04904612]
[1727993923827,0.0822,60830.0,60829.0,0.04904612]
[1727993924127,0.0822,60830.0,60827.0,0.13125234]
[1727993924323,0.082202,60829.0,60827.0,0.13125234]
[1727993925729,0.085202,60829.0,60827.0,0.13125234]
[1727993926123,0.082203,60828.0,60827.0,0.04904934]
[1727993926424,0.003,60829.0,60826.0,0.04904934]
[1727993926425,0.082204,60827.0,60826.0,0.04904934]
[1727993929324,0.084204,60827.0,60826.0,0.04904934]
[1727993929524,0.084204,60827.0,60825.0,0.04904934]
[1727993929736,0.082205,60826.0,60825.0,0.04904934]
[1727993932428,0.083205,60826.0,60825.0,0.13125634]
[1727993933240,0.083205,60826.0,60825.0,0.04904934]
[1727993935242,0.001,60826.0,60823.0,0.1778976]
[1727993935435,0.001,60826.0,60823.0,0.0956886]
[1727993935635,0.082208,60824.0,60823.0,0.0653886]
[1727993936440,0.082208,60824.0,60823.0,0.0663886]
[1727993936940,0.082208,60824.0,60823.0,0.001]
[1727993941143,0.082208,60824.0,60823.0,0.18918487]
[1727993942351,0.082208,60824.0,60823.0,0.10743683]
[1727993944149,0.3608,60827.0,60823.0,0.20578439]
[1727993944448,0.0038,60834.0,60833.0,0.082196]
[1727993944653,0.082186,60841.0,60833.0,0.29643683]
[1727993944960,0.082186,60841.0,60839.0,0.2720077]
[1727993945347,0.082186,60841.0,60839.0,0.19]
[1727993946051,0.082186,60841.0,60838.0,0.1641967]
[1727993946251,0.014,60841.0,60838.0,0.0820077]
[1727993946459,0.272188,60839.0,60837.0,0.0820077]
[1727993946652,0.082189,60838.0,60837.0,0.0820077]
[1727993946851,0.08219,60837.0,60836.0,0.0820077]
[1727993947049,0.08219,60837.0,60836.0,0.1878111]
[1727993947350,0.08219,60837.0,60836.0,0.10586828]
[1727993948261,0.08219,60837.0,60836.0,0.20414274]
[1727993948658,0.08219,60837.0,60836.0,0.10586828]
[1727993948962,0.064,60838.0,60835.0,0.08191854]
[1727993949159,0.272192,60836.0,60835.0,0.08191854]
[1727993949361,0.272192,60836.0,60835.0,0.10612469]
[1727993949561,1.365312,60836.0,60835.0,0.08193474]
[1727993949751,0.575313,60835.0,60834.0,1e-08]
[1727993949954,0.272193,60835.0,60834.0,1e-08]
[1727993950156,1.365353,60835.0,60830.0,0.09827446]
[1727993950453,0.272199,60831.0,60830.0,0.09827446]
[1727993950657,0.272199,60831.0,60830.0,0.20332785]
[1727993951665,0.272199,60831.0,60822.0,0.08221]
[1727993951666,1.64396,60831.0,60822.0,0.11468475]
[1727993951968,0.082215,60819.0,60818.0,0.0038]
[1727993952161,0.08222,60815.0,60814.0,0.11468475]
[1727993952360,0.08222,60815.0,60810.0,0.00246658]
[1727993952361,0.082226,60811.0,60810.0,0.00246658]
[1727993952668,0.082236,60803.0,60801.0,0.0038]
[1727993952970,0.082236,60803.0,60793.0,0.0038]
[1727993952971,0.082249,60794.0,60793.0,0.0038]
[1727993953167,0.19,60794.0,60789.0,0.11468475]
[1727993953369,0.19,60794.0,60788.0,0.00246749]
[1727993954164,0.19,60794.0,60793.0,0.0655054]
[1727993954571,0.19,60794.0,60792.0,0.0655054]
[1727993954869,0.0305,60802.0,60792.0,0.0655054]
[1727993954870,0.27225,60793.0,60792.0,0.06550604]
[1727993955167,0.27225,60793.0,60791.0,0.06550604]
[1727993955357,0.082252,60792.0,60790.0,0.06550604]
[1727993955671,0.082252,60792.0,60791.0,0.06550604]
[1727993956369,0.001,60794.0,60788.0,0.00246749]
[1727993956370,0.001,60793.0,60789.0,0.06550604]
[1727993956572,0.08325,60793.0,60792.0,0.04905608]
[1727993956761,0.08225,60793.0,60792.0,0.04905608]
[1727993957269,0.082251,60792.0,60790.0,0.04905608]
[1727993957582,0.082253,60791.0,60790.0,0.04905608]
[1727993957967,0.082253,60791.0,60788.0,0.00246749]
[1727993958160,0.082253,60791.0,60790.0,0.04901097]
[1727993958365,0.082253,60791.0,60789.0,0.04901097]
[1727993959166,0.082253,60791.0,60783.0,0.02925078]
[1727993959167,0.082263,60783.0,60782.0,0.05280526]
[1727993959359,0.082263,60783.0,60779.0,0.04900526]
[1727993959360,0.19,60783.0,60779.0,0.04900526]
[1727993959560,0.082268,60780.0,60776.0,0.04900526]
[1727993959777,0.03294,60790.0,60775.0,0.04900526]
[1727993959778,0.19,60778.0,60775.0,0.04900526]
[1727993959973,0.27227,60778.0,60775.0,0.04900526]
[1727993960166,0.27227,60778.0,60773.0,0.04900526]
[1727993960467,0.19,60778.0,60769.0,0.00246827]
[1727993960661,0.19,60770.0,60769.0,0.00246827]
[1727993961369,0.08228,60771.0,60769.0,0.00246827]
[1727993961769,0.001,60770.0,60769.0,0.00246827]
[1727993961970,0.002,60770.0,60769.0,0.00246827]
[1727993962166,0.08228,60771.0,60769.0,0.00246827]
[1727993962475,0.08328,60771.0,60769.0,0.00246827]
[1727993962862,0.272281,60770.0,60769.0,0.00246827]
[1727993963065,0.633081,60770.0,60769.0,0.00246827]
[1727993963370,1.126761,60770.0,60769.0,1e-08]
[1727993963569,1.726761,60770.0,60769.0,1e-08]
[1727993964072,1.726761,60770.0,60769.0,0.00100001]
[1727993964967,1.726761,60770.0,60769.0,0.00200001]
[1727993964968,1.728761,60770.0,60769.0,0.00200001]
[1727993969075,1.728761,60770.0,60760.0,0.086094]
[1727993969076,0.082293,60761.0,60760.0,0.0038]
[1727993969275,0.082293,60761.0,60742.0,0.89522604]
[1727993969276,0.082305,60752.0,60751.0,0.0038]
[1727993969462,0.082307,60751.0,60742.0,0.36552]
[1727993969774,0.082307,60751.0,60742.0,0.3646]
[1727993970872,0.082307,60751.0,60745.0,0.082315]
[1727993971068,0.082307,60751.0,60742.0,0.3646]
[1727993971069,0.082302,60755.0,60749.0,0.082309]
[1727993971269,0.19,60751.0,60746.0,0.0038]
[1727993971466,0.19,60751.0,60745.0,0.082315]
[1727993971467,0.272307,60751.0,60745.0,0.082315]
[1727993971675,0.272307,60751.0,60748.0,0.082311]
[1727993971676,0.083307,60751.0,60748.0,0.082311]
[1727993972272,0.28,60753.0,60748.0,0.082311]
[1727993972475,0.001,60755.0,60743.0,0.28]
[1727993972673,0.3646,60760.0,60753.0,0.082304]
[1727993972674,0.0038,60757.0,60753.0,0.082304]
[1727993972868,0.082299,60757.0,60753.0,0.082304]
[1727993973187,0.3608,60760.0,60749.0,0.0632]
[1727993973366,0.001,60761.0,60757.0,0.28]
[1727993973563,0.001,60761.0,60760.0,0.082295]
[1727993973766,0.0038,60768.0,60763.0,0.08229]
[1727993974066,0.082283,60769.0,60765.0,0.082288]
[1727993974277,0.082277,60773.0,60766.0,0.082286]
[1727993974476,0.082278,60772.0,60766.0,0.082286]
[1727993974678,0.08228,60771.0,60766.0,0.082286]
[1727993974976,0.082282,60770.0,60762.0,0.28]
[1727993975169,0.082282,60770.0,60764.0,0.082289]
[1727993975470,0.082286,60767.0,60765.0,0.0309]
[1727993975670,0.08228,60771.0,60766.0,0.082286]
[1727993976076,0.00246954,60774.0,60765.0,0.0309]
[1727993976382,0.00246954,60774.0,60771.0,0.082279]
[1727993976566,0.08474554,60774.0,60771.0,0.082279]
[1727993976767,0.08474554,60774.0,60772.0,0.082278]
[1727993977078,0.00246954,60774.0,60773.0,0.0314]
[1727993977279,0.00246954,60774.0,60773.0,0.113677]
[1727993977882,0.00746954,60774.0,60773.0,0.113677]
[1727993978073,0.01446954,60774.0,60773.0,0.113677]
[1727993978474,0.01446954,60774.0,60773.0,0.0314]
[1727993978779,0.09974554,60774.0,60773.0,0.0314]
[1727993980580,0.01746954,60774.0,60773.0,0.0314]
[1727993981167,0.01746954,60774.0,60773.0,0.09690604]
[1727993981570,0.01746954,60774.0,60773.0,0.17918304]
[1727993981776,0.01746954,60774.0,60773.0,0.113677]